{"text_format":"1","workbook":"xlsx","n_sheets":3,"sheets":["Troll3","Piletid","Sündmusprotseduurid"],"not_rendered":{"charts":0,"images":0,"macros":1,"external_links":0,"defined_names":10,"comments":0,"pivot_tables":0},"unopened":[],"bounds":{"document_bytes":16777216,"sheet_cells":100000,"rows_first":2000,"rows_last":500,"rows_between":2000,"halvings":0,"cell_chars":16384,"cell_head_chars":4096},"cells_cut":0,"cells_raw":0,"read":"whole","date_system":"1900"}

{"sheet":"Troll3","index":0,"n_rows":111,"n_cols":22,"rows_kept":111,"cut":false,"hidden":false,"merged":[]}
[]
[]
[]
[]
[]
[]
[]
[]
[]
[]
[]
[]
[]
[]
[]
[]
[]
[]
[null,null,null,null,null,null,null,null,null,null,null,null,null,null,null,null,null,"05:21:00",null,{"$f":"NOW()","v":"2025-04-16T15:36:08.810"},{"$f":"_xlfn.FORMULATEXT(T19)","v":"=NOW()"}]
[null,null,null,null,null,null,null,null,null,null,null,null,null,null,null,null,null,"05:36:00",null,{"$f":"TODAY()","v":"2025-04-16"},{"$f":"_xlfn.FORMULATEXT(T20)","v":"=TODAY()"}]
[null,null,{"$f":"_xlfn.FORMULATEXT(C23)","v":"=MID($B23;C$22;2)"},null,null,null,null,null,null,null,{"$f":"_xlfn.FORMULATEXT(K23)","v":"=IF(C23=\"\";\"\";TIME($A23;C23;0))"},null,null,null,null,null,null,"05:51:00",null,null,{"$f":"NOW()-TODAY()","v":"15:36:08.810"}]
[null,null,1,3,5,7,9,11,13,null,null,null,null,null,null,null,null,"06:06:00"]
["5","213651",{"$f":"MID($B23,C$22,2)","v":"21"},{"$f":"MID($B23,D$22,2)","v":"36"},"51","","","","",null,{"$f":"IF(C23=\"\",\"\",TIME($A23,C23,0))","v":"05:21:00"},{"$f":"IF(D23=\"\",\"\",TIME($A23,D23,0))","v":"05:36:00"},"05:51:00","","","",null,"06:21:00",null,"praegu",{"$f":"NOW()-TODAY()","v":"15:36:08.810"},{"$f":"_xlfn.FORMULATEXT(U23)","v":"=NOW()-TODAY()"}]
["6","0621324353",{"$f":"MID($B24,C$22,2)","v":"06"},"21","32","43","53","","",null,{"$f":"IF(C24=\"\",\"\",TIME($A24,C24,0))","v":"06:06:00"},{"$f":"IF(D24=\"\",\"\",TIME($A24,D24,0))","v":"06:21:00"},{"$f":"IF(E24=\"\",\"\",TIME($A24,E24,0))","v":"06:32:00"},{"$f":"IF(F24=\"\",\"\",TIME($A24,F24,0))","v":"06:43:00"},{"$f":"IF(G24=\"\",\"\",TIME($A24,G24,0))","v":"06:53:00"},{"$f":"IF(H24=\"\",\"\",TIME($A24,H24,0))","v":""},null,"06:32:00",null,"aeg_1",{"$f":"_xlfn.MINIFS(ajad,ajad,\">\" & praegu)","v":"15:37:00"},{"$f":"_xlfn.FORMULATEXT(U24)","v":"=MINIFS(ajad;ajad;\">\" & praegu)"}]
["7","041425354555","04","14","25","35","45","55","",null,"07:04:00","07:14:00","07:25:00","07:35:00","07:45:00","07:55:00",null,"06:43:00",null,"aeg_2"]
["8","0516273951","05","16","27","39","51","","",null,"08:05:00","08:16:00","08:27:00","08:39:00","08:51:00","",null,"06:53:00",null,"aeg_3"]
["9","0315273951","03","15","27","39","51","","",null,"09:03:00","09:15:00","09:27:00","09:39:00","09:51:00","",null,"07:04:00"]
["10","0315273951","03","15","27","39","51","","",null,"10:03:00","10:15:00","10:27:00","10:39:00","10:51:00","",null,"07:14:00"]
["11","0315273951","03","15","27","39","51","","",null,"11:03:00","11:15:00","11:27:00","11:39:00","11:51:00","",null,"07:25:00"]
["12","0315273951","03","15","27","39","51","","",null,"12:03:00","12:15:00","12:27:00","12:39:00","12:51:00","",null,"07:35:00"]
["13","0315273951","03","15","27","39","51","","",null,"13:03:00","13:15:00","13:27:00","13:39:00","13:51:00","",null,"07:45:00"]
["14","031526374757","03","15","26","37","47","57","",null,"14:03:00","14:15:00","14:26:00","14:37:00","14:47:00","14:57:00",null,"07:55:00"]
["15","071727374858","07","17","27","37","48","58","",null,"15:07:00","15:17:00","15:27:00","15:37:00","15:48:00","15:58:00",null,"08:05:00"]
["16","0920314253","09","20","31","42","53","","",null,"16:09:00","16:20:00","16:31:00","16:42:00","16:53:00","",null,"08:16:00"]
["17","041526374758","04","15","26","37","47","58","",null,"17:04:00","17:15:00","17:26:00","17:37:00","17:47:00","17:58:00",null,"08:27:00"]
["18","0920334659","09","20","33","46","59","","",null,"18:09:00","18:20:00","18:33:00","18:46:00","18:59:00","",null,"08:39:00"]
["19","12253851","12","25","38","51","","","",null,"19:12:00","19:25:00","19:38:00","19:51:00","","",null,"08:51:00"]
["20","0518314457","05","18","31","44","57","","",null,"20:05:00","20:18:00","20:31:00","20:44:00","20:57:00","",null,"09:03:00"]
["21","10233649","10","23","36","49","","","",null,"21:10:00","21:23:00","21:36:00","21:49:00","","",null,"09:15:00"]
["22","0215284156","02","15","28","41","56","","",null,"22:02:00","22:15:00","22:28:00","22:41:00","22:56:00","",null,"09:27:00"]
["23","112641","11","26","41","","","","",null,"23:11:00","23:26:00","23:41:00","","","",null,"09:39:00"]
[null,null,null,null,null,null,null,null,null,null,null,null,null,null,null,null,null,"09:51:00"]
[null,null,null,null,null,null,null,null,null,null,null,null,null,null,null,null,null,"10:03:00"]
[null,null,null,null,null,null,null,null,null,null,null,null,null,null,null,null,null,"10:15:00"]
["5","213651",21,36,51,null,null,null,null,null,null,null,null,null,null,null,null,"10:27:00"]
["6","0621324353",6,21,32,43,53,null,null,null,null,null,null,null,null,null,null,"10:39:00"]
["7","041425354555",4,14,25,35,45,55,null,null,null,null,null,null,null,null,null,"10:51:00"]
["8","0516273951",5,16,27,39,51,null,null,null,null,null,null,null,null,null,null,"11:03:00"]
["9","0315273951",3,15,27,39,51,null,null,null,null,null,null,null,null,null,null,"11:15:00"]
["10","0315273951",3,15,27,39,51,null,null,null,null,null,null,null,null,null,null,"11:27:00"]
["11","0315273951",3,15,27,39,51,null,null,null,null,null,null,null,null,null,null,"11:39:00"]
["12","0315273951",3,15,27,39,51,null,null,null,null,null,null,null,null,null,null,"11:51:00"]
["13","0315273951",3,15,27,39,51,null,null,null,null,null,null,null,null,null,null,"12:03:00"]
["14","031526374757",3,15,26,37,47,57,null,null,null,null,null,null,null,null,null,"12:15:00"]
["15","071727374858",7,17,27,37,48,58,null,null,null,null,null,null,null,null,null,"12:27:00"]
["16","0920314253",9,20,31,42,53,null,null,null,null,null,null,null,null,null,null,"12:39:00"]
["17","041526374758",4,15,26,37,47,58,null,null,null,null,null,null,null,null,null,"12:51:00"]
["18","0920334659",9,20,33,46,59,null,null,null,null,null,null,null,null,null,null,"13:03:00"]
["19","12253851",12,25,38,51,null,null,null,null,null,null,null,null,null,null,null,"13:15:00"]
["20","0518314457",5,18,31,44,57,null,null,null,null,null,null,null,null,null,null,"13:27:00"]
["21","10233649",10,23,36,49,null,null,null,null,null,null,null,null,null,null,null,"13:39:00"]
["22","0215284156",2,15,28,41,56,null,null,null,null,null,null,null,null,null,null,"13:51:00"]
["23","112641",11,26,41,null,null,null,null,null,null,null,null,null,null,null,null,"14:03:00"]
[null,null,null,null,null,null,null,null,null,null,null,null,null,null,null,null,null,"14:15:00"]
[null,null,null,null,null,null,null,null,null,null,null,null,null,null,null,null,null,"14:26:00"]
[null,null,null,null,null,null,null,null,null,null,null,null,null,null,null,null,null,"14:37:00"]
[null,null,null,null,null,null,null,null,null,null,null,null,null,null,null,null,null,"14:47:00"]
[null,null,null,null,null,null,null,null,null,null,null,null,null,null,null,null,null,"14:57:00"]
[null,null,null,null,null,null,null,null,null,null,null,null,null,null,null,null,null,"15:07:00"]
[null,null,null,null,null,null,null,null,null,null,null,null,null,null,null,null,null,"15:17:00"]
[null,null,null,null,null,null,null,null,null,null,null,null,null,null,null,null,null,"15:27:00"]
[null,null,null,null,null,null,null,null,null,null,null,null,null,null,null,null,null,"15:37:00"]
[null,null,null,null,null,null,null,null,null,null,null,null,null,null,null,null,null,"15:48:00"]
[null,null,null,null,null,null,null,null,null,null,null,null,null,null,null,null,null,"15:58:00"]
[null,null,null,null,null,null,null,null,null,null,null,null,null,null,null,null,null,"16:09:00"]
[null,null,null,null,null,null,null,null,null,null,null,null,null,null,null,null,null,"16:20:00"]
[null,null,null,null,null,null,null,null,null,null,null,null,null,null,null,null,null,"16:31:00"]
[null,null,null,null,null,null,null,null,null,null,null,null,null,null,null,null,null,"16:42:00"]
[null,null,null,null,null,null,null,null,null,null,null,null,null,null,null,null,null,"16:53:00"]
[null,null,null,null,null,null,null,null,null,null,null,null,null,null,null,null,null,"17:04:00"]
[null,null,null,null,null,null,null,null,null,null,null,null,null,null,null,null,null,"17:15:00"]
[null,null,null,null,null,null,null,null,null,null,null,null,null,null,null,null,null,"17:26:00"]
[null,null,null,null,null,null,null,null,null,null,null,null,null,null,null,null,null,"17:37:00"]
[null,null,null,null,null,null,null,null,null,null,null,null,null,null,null,null,null,"17:47:00"]
[null,null,null,null,null,null,null,null,null,null,null,null,null,null,null,null,null,"17:58:00"]
[null,null,null,null,null,null,null,null,null,null,null,null,null,null,null,null,null,"18:09:00"]
[null,null,null,null,null,null,null,null,null,null,null,null,null,null,null,null,null,"18:20:00"]
[null,null,null,null,null,null,null,null,null,null,null,null,null,null,null,null,null,"18:33:00"]
[null,null,null,null,null,null,null,null,null,null,null,null,null,null,null,null,null,"18:46:00"]
[null,null,null,null,null,null,null,null,null,null,null,null,null,null,null,null,null,"18:59:00"]
[null,null,null,null,null,null,null,null,null,null,null,null,null,null,null,null,null,"19:12:00"]
[null,null,null,null,null,null,null,null,null,null,null,null,null,null,null,null,null,"19:25:00"]
[null,null,null,null,null,null,null,null,null,null,null,null,null,null,null,null,null,"19:38:00"]
[null,null,null,null,null,null,null,null,null,null,null,null,null,null,null,null,null,"19:51:00"]
[null,null,null,null,null,null,null,null,null,null,null,null,null,null,null,null,null,"20:05:00"]
[null,null,null,null,null,null,null,null,null,null,null,null,null,null,null,null,null,"20:18:00"]
[null,null,null,null,null,null,null,null,null,null,null,null,null,null,null,null,null,"20:31:00"]
[null,null,null,null,null,null,null,null,null,null,null,null,null,null,null,null,null,"20:44:00"]
[null,null,null,null,null,null,null,null,null,null,null,null,null,null,null,null,null,"20:57:00"]
[null,null,null,null,null,null,null,null,null,null,null,null,null,null,null,null,null,"21:10:00"]
[null,null,null,null,null,null,null,null,null,null,null,null,null,null,null,null,null,"21:23:00"]
[null,null,null,null,null,null,null,null,null,null,null,null,null,null,null,null,null,"21:36:00"]
[null,null,null,null,null,null,null,null,null,null,null,null,null,null,null,null,null,"21:49:00"]
[null,null,null,null,null,null,null,null,null,null,null,null,null,null,null,null,null,"22:02:00"]
[null,null,null,null,null,null,null,null,null,null,null,null,null,null,null,null,null,"22:15:00"]
[null,null,null,null,null,null,null,null,null,null,null,null,null,null,null,null,null,"22:28:00"]
[null,null,null,null,null,null,null,null,null,null,null,null,null,null,null,null,null,"22:41:00"]
[null,null,null,null,null,null,null,null,null,null,null,null,null,null,null,null,null,"22:56:00"]
[null,null,null,null,null,null,null,null,null,null,null,null,null,null,null,null,null,"23:11:00"]
[null,null,null,null,null,null,null,null,null,null,null,null,null,null,null,null,null,"23:26:00"]
[null,null,null,null,null,null,null,null,null,null,null,null,null,null,null,null,null,"23:41:00"]

{"sheet":"Piletid","index":1,"n_rows":193,"n_cols":9,"rows_kept":193,"cut":false,"hidden":false,"merged":[]}
["Bussiajad"]
["01:00 - 03:25 (2:25h) ABuss OÜ"]
["E R L"]
["Tallinn - Tartu"]
["ABuss OÜ"]
["05:40 - 08:15 (2:35h) Tartu Bussikeskus"]
["E T K N R L P"]
["Tallinn - Põltsamaa - Tartu"]
["Arilix OÜ"]
["06:30 - 09:00 (2:30h) Lux Express"]
["E T K N R L P"]
["Tallinn - Tartu",null,null,"Algus","Lõpp","Kestus","Liin","Päevad","Firma"]
["Lux Express Estonia AS",null,null,"01:00:00","03:25:00","02:25:00","Tallinn - Tartu","E R L","ABuss OÜ"]
["07:00 - 09:30 (2:30h) Lux Express",null,null,"05:40:00","08:15:00","02:35:00","Tallinn - Põltsamaa - Tartu","E T K N R L P","Arilix OÜ"]
["E T K N R L P",null,null,"06:30:00","09:00:00","02:30:00","Tallinn - Tartu","E T K N R L P","Lux Express Estonia AS"]
["Tallinn - Tartu",null,null,"07:00:00","09:30:00","02:30:00","Tallinn - Tartu","E T K N R L P","Lux Express Estonia AS"]
["Lux Express Estonia AS",null,null,"07:30:00","10:00:00","02:30:00","Tallinn - Tartu - Võru","E T K N R L P","Lux Express Estonia AS"]
["07:30 - 10:00 (2:30h) Lux Express",null,null,"08:00:00","10:30:00","02:30:00","Tallinn - Tartu","E T K N R L P","Lux Express Estonia AS"]
["E T K N R L P",null,null,"08:20:00","10:35:00","02:15:00","Tallinn-Tartu-Petseri-Pihkva","E T K N R L P","Esvil-Reisid AS"]
["Tallinn - Tartu - Võru",null,null,"08:30:00","11:00:00","02:30:00","Tallinn - Tartu","E T K N R L P","Lux Express Estonia AS"]
["Lux Express Estonia AS",null,null,"09:00:00","11:35:00","02:35:00","Tallinn - Võru","E T K N R L P","MK Autobuss AS"]
["08:00 - 10:30 (2:30h) Lux Express",null,null,"09:00:00","11:30:00","02:30:00","Tallinn - Tartu","E T K N R L P","Lux Express Estonia AS"]
["E T K N R L P",null,null,"09:30:00","12:00:00","02:30:00","Tallinn - Tartu","E T K N R L P","Lux Express Estonia AS"]
["Tallinn - Tartu",null,null,"10:00:00","12:30:00","02:30:00","Tallinn - Tartu","E T K N R L P","Lux Express Estonia AS"]
["Lux Express Estonia AS",null,null,"10:00:00","12:30:00","02:30:00","Tallinn - Tartu","E T K N R L P","Lux Express Estonia AS"]
["08:20 - 10:35 (2:15h) Esvil-Reisid AS",null,null,"10:00:00","12:30:00","02:30:00","Tallinn - Tartu - Kiiev","E K R P","OOO \"Ukrainskie Linija\""]
["E T K N R L P",null,null,"10:30:00","13:00:00","02:30:00","Tallinn - Tartu - Võru","E T K N R L P","Lux Express Estonia AS"]
["Tallinn-Tartu-Petseri-Pihkva",null,null,"11:00:00","13:30:00","02:30:00","Tallinn - Tartu","E T K N R L P","Lux Express Estonia AS"]
["Esvil-Reisid AS",null,null,"11:30:00","14:00:00","02:30:00","Tallinn - Tartu","E T K N R L P","Lux Express Estonia AS"]
["08:30 - 11:00 (2:30h) Lux Express",null,null,"11:30:00","14:10:00","02:40:00","Tallinn - Tartu - Võru","E T K N L","MK Autobuss AS"]
["E T K N R L P",null,null,"11:30:00","14:10:00","02:40:00","Tallinn - Tartu - Võru","R P","MK Autobuss AS"]
["Tallinn - Tartu",null,null,"12:00:00","14:30:00","02:30:00","Tallinn - Tartu","E T K N R L P","Lux Express Estonia AS"]
["Lux Express Estonia AS",null,null,"12:30:00","15:00:00","02:30:00","Tallinn - Tartu","E T K N R L P","Lux Express Estonia AS"]
["09:00 - 11:35 (2:35h) MK Autobuss AS",null,null,"12:30:00","15:00:00","02:30:00","Tallinn - Tartu","R P","Lux Express Estonia AS"]
["E T K N R L P",null,null,"12:45:00","15:15:00","02:30:00","Tallinn - Tartu - Võru","E T K N R L P","Taisto Liinid OÜ"]
["Tallinn - Võru",null,null,"13:00:00","15:30:00","02:30:00","Tallinn - Tartu","E T K N R L P","Lux Express Estonia AS"]
["MK Autobuss AS",null,null,"13:30:00","16:00:00","02:30:00","Tallinn - Tartu","E T K N R L P","Lux Express Estonia AS"]
["09:00 - 11:30 (2:30h) Lux Express",null,null,"14:00:00","16:30:00","02:30:00","Tallinn - Tartu","E T K N R L P","Lux Express Estonia AS"]
["E T K N R L P",null,null,"14:15:00","16:45:00","02:30:00","Tallinn - Võru","E T K N R L P","Bussipartner OÜ"]
["Tallinn - Tartu",null,null,"14:30:00","17:00:00","02:30:00","Tallinn - Tartu","E T K N R L P","Lux Express Estonia AS"]
["Lux Express Estonia AS",null,null,"15:00:00","17:30:00","02:30:00","Tallinn - Tartu","E T K N R L P","Lux Express Estonia AS"]
["09:30 - 12:00 (2:30h) Lux Express",null,null,"15:00:00","17:30:00","02:30:00","Tallinn - Tartu","R P","Lux Express Estonia AS"]
["E T K N R L P",null,null,"15:30:00","18:00:00","02:30:00","Tallinn - Tartu - Võru","E T K N R L P","Lux Express Estonia AS"]
["Tallinn - Tartu",null,null,"15:30:00","18:00:00","02:30:00","Tallinn - Tartu","R P","Lux Express Estonia AS"]
["Lux Express Estonia AS",null,null,"16:00:00","18:30:00","02:30:00","Tallinn - Tartu","E T K N R L P","Lux Express Estonia AS"]
["10:00 - 12:30 (2:30h) Simple Express Lisabuss",null,null,"16:30:00","19:00:00","02:30:00","Tallinn - Võru","E T K N R L P","Lux Express Estonia AS"]
["E T K N R L P",null,null,"17:00:00","19:30:00","02:30:00","Tallinn - Tartu","E T K N R L P","Lux Express Estonia AS"]
["Tallinn - Tartu",null,null,"17:00:00","19:30:00","02:30:00","Tallinn - Tartu","R P","Lux Express Estonia AS"]
["Lux Express Estonia AS",null,null,"17:30:00","20:00:00","02:30:00","Tallinn - Tartu","E T K N R L P","Lux Express Estonia AS"]
["10:00 - 12:30 (2:30h) Lux Express",null,null,"18:00:00","20:30:00","02:30:00","Tallinn - Tartu","E T K N R L P","Lux Express Estonia AS"]
["E T K N R L P",null,null,"18:00:00","20:30:00","02:30:00","Tallinn - Tartu","N R L P","Lux Express Estonia AS"]
["Tallinn - Tartu",null,null,"18:30:00","21:00:00","02:30:00","Tallinn - Tartu","E T K N R L P","Lux Express Estonia AS"]
["Lux Express Estonia AS",null,null,"19:00:00","21:30:00","02:30:00","Tallinn - Tartu","E T K N R L P","Lux Express Estonia AS"]
["10:00 - 12:30 (2:30h) OOO \"Ukrainskie Linija\"",null,null,"19:30:00","22:00:00","02:30:00","Tallinn - Tartu","E T K N R L P","Lux Express Estonia AS"]
["E K R P",null,null,"20:00:00","22:30:00","02:30:00","Tallinn - Tartu - Luhamaa","E T K N R L P","Lux Express Estonia AS"]
["Tallinn - Tartu - Kiiev",null,null,"20:30:00","23:00:00","02:30:00","Tallinn - Tartu","R P","Estonian Lines OÜ"]
["OOO \"Ukrainskie Linija\"",null,null,"21:00:00","23:30:00","02:30:00","Tallinn - Tartu","E T K N R L P","Lux Express Estonia AS"]
["10:30 - 13:00 (2:30h) Lux Express",null,null,"21:30:00","00:00:00","02:30:00","Tallinn - Tartu - Võru","P","Taisto Liinid OÜ"]
["E T K N R L P",null,null,"22:00:00","00:30:00","02:30:00","Tallinn - Tartu","E T K N R L P","Lux Express Estonia AS"]
["Tallinn - Tartu - Võru",null,null,"23:00:00","01:45:00","02:45:00","Tallinn - Tartu","E T K N R L P","Lux Express Estonia AS"]
["Lux Express Estonia AS"]
["11:00 - 13:30 (2:30h) Lux Express"]
["E T K N R L P"]
["Tallinn - Tartu"]
["Lux Express Estonia AS"]
["11:30 - 14:00 (2:30h) Lux Express"]
["E T K N R L P"]
["Tallinn - Tartu"]
["Lux Express Estonia AS"]
["11:30 - 14:10 (2:40h) MK Autobuss AS"]
["E T K N L"]
["Tallinn - Tartu - Võru"]
["MK Autobuss AS"]
["11:30 - 14:10 (2:40h) MK Autobuss AS"]
["R P"]
["Tallinn - Tartu - Võru"]
["MK Autobuss AS"]
["12:00 - 14:30 (2:30h) Lux Express"]
["E T K N R L P"]
["Tallinn - Tartu"]
["Lux Express Estonia AS"]
["12:30 - 15:00 (2:30h) Lux Express"]
["E T K N R L P"]
["Tallinn - Tartu"]
["Lux Express Estonia AS"]
["12:30 - 15:00 (2:30h) Simple Express"]
["R P"]
["Tallinn - Tartu"]
["Lux Express Estonia AS"]
["12:45 - 15:15 (2:30h) Taisto Liinid"]
["E T K N R L P"]
["Tallinn - Tartu - Võru"]
["Taisto Liinid OÜ"]
["13:00 - 15:30 (2:30h) Lux Express"]
["E T K N R L P"]
["Tallinn - Tartu"]
["Lux Express Estonia AS"]
["13:30 - 16:00 (2:30h) Lux Express"]
["E T K N R L P"]
["Tallinn - Tartu"]
["Lux Express Estonia AS"]
["14:00 - 16:30 (2:30h) Lux Express"]
["E T K N R L P"]
["Tallinn - Tartu"]
["Lux Express Estonia AS"]
["14:15 - 16:45 (2:30h) Bussipartner OÜ"]
["E T K N R L P"]
["Tallinn - Võru"]
["Bussipartner OÜ"]
["14:30 - 17:00 (2:30h) Lux Express"]
["E T K N R L P"]
["Tallinn - Tartu"]
["Lux Express Estonia AS"]
["15:00 - 17:30 (2:30h) Lux Express Lisabuss"]
["E T K N R L P"]
["Tallinn - Tartu"]
["Lux Express Estonia AS"]
["15:00 - 17:30 (2:30h) Lux Express Lisabuss"]
["R P"]
["Tallinn - Tartu"]
["Lux Express Estonia AS"]
["15:30 - 18:00 (2:30h) Lux Express"]
["E T K N R L P"]
["Tallinn - Tartu - Võru"]
["Lux Express Estonia AS"]
["15:30 - 18:00 (2:30h) Simple Express"]
["R P"]
["Tallinn - Tartu"]
["Lux Express Estonia AS"]
["16:00 - 18:30 (2:30h) Lux Express"]
["E T K N R L P"]
["Tallinn - Tartu"]
["Lux Express Estonia AS"]
["16:30 - 19:00 (2:30h) Lux Express"]
["E T K N R L P"]
["Tallinn - Võru"]
["Lux Express Estonia AS"]
["17:00 - 19:30 (2:30h) Lux Express Lisabuss"]
["E T K N R L P"]
["Tallinn - Tartu"]
["Lux Express Estonia AS"]
["17:00 - 19:30 (2:30h) Lux Express Lisabuss"]
["R P"]
["Tallinn - Tartu"]
["Lux Express Estonia AS"]
["17:30 - 20:00 (2:30h) Lux Express"]
["E T K N R L P"]
["Tallinn - Tartu"]
["Lux Express Estonia AS"]
["18:00 - 20:30 (2:30h) Lux Express Lisabuss"]
["E T K N R L P"]
["Tallinn - Tartu"]
["Lux Express Estonia AS"]
["18:00 - 20:30 (2:30h) Lux Express Lisabuss"]
["N R L P"]
["Tallinn - Tartu"]
["Lux Express Estonia AS"]
["18:30 - 21:00 (2:30h) Lux Express"]
["E T K N R L P"]
["Tallinn - Tartu"]
["Lux Express Estonia AS"]
["19:00 - 21:30 (2:30h) Lux Express"]
["E T K N R L P"]
["Tallinn - Tartu"]
["Lux Express Estonia AS"]
["19:30 - 22:00 (2:30h) Lux Express"]
["E T K N R L P"]
["Tallinn - Tartu"]
["Lux Express Estonia AS"]
["20:00 - 22:30 (2:30h) Lux Express"]
["E T K N R L P"]
["Tallinn - Tartu - Luhamaa"]
["Lux Express Estonia AS"]
["20:30 - 23:00 (2:30h) Estonian Lines OÜ"]
["R P"]
["Tallinn - Tartu"]
["Estonian Lines OÜ"]
["21:00 - 23:30 (2:30h) Lux Express"]
["E T K N R L P"]
["Tallinn - Tartu"]
["Lux Express Estonia AS"]
["21:30 - 00:00 (2:30h) Taisto Liinid"]
["P"]
["Tallinn - Tartu - Võru"]
["Taisto Liinid OÜ"]
["22:00 - 00:30 (2:30h) Lux Express"]
["E T K N R L P"]
["Tallinn - Tartu"]
["Lux Express Estonia AS"]
["23:00 - 01:45 (2:45h) Lux Express"]
["E T K N R L P"]
["Tallinn - Tartu"]
["Lux Express Estonia AS"]

{"sheet":"Sündmusprotseduurid","index":2,"n_rows":16,"n_cols":1,"rows_kept":16,"cut":false,"hidden":false,"merged":[]}
["2025-04-16T15:28:43"]
[]
[]
[]
[]
[]
["2025-04-16T15:30:58"]
[]
[]
["2025-04-16T15:29:50"]
[]
["2025-04-16T15:30:22"]
[]
[]
["2025-04-16T15:36:08"]
["2025-04-16T15:27:12"]